[Event "Chpt France Universitaire 2024"]
[Site "Bastia, France"]
[Date "2024.04.07"]
[Round "9.6"]
[White "Bosc, Seraphina"]
[Black "Eveno, Nathan"]
[Result "1-0"]
[TimeControl "15min+5s"]
[WhiteElo "2216"]
[BlackElo "2192"]

1. e4 {[%clk 00:15:05]} {[%emt 00:00:02]} c5 {[%clk 00:15:05]} {[%emt
00:00:01]} 2. Nc3 {[%clk 00:15:05]} {[%emt 00:00:02]} a6 {[%clk 00:15:05]}
{[%emt 00:00:01]} 3. g3 {[%clk 00:14:48]} {[%emt 00:00:22]} b5 {[%clk
00:15:05]} {[%emt 00:00:02]} 4. Bg2 {[%clk 00:14:47]} {[%emt 00:00:06]} Bb7
{[%clk 00:15:05]} {[%emt 00:00:01]} 5. d3 {[%clk 00:14:43]} {[%emt 00:00:08]}
e6 {[%clk 00:15:05]} {[%emt 00:00:02]} 6. Nge2 {[%clk 00:14:16]} {[%emt
00:00:32]} d5 {[%clk 00:15:05]} {[%emt 00:00:05]} 7. exd5 {[%clk 00:14:12]}
{[%emt 00:00:09]} Nf6 {[%clk 00:15:05]} {[%emt 00:00:03]} 8. Bg5 {[%clk
00:12:57]} {[%emt 00:01:20]} Be7 {[%clk 00:13:23]} {[%emt 00:01:47]} 9. O-O
{[%clk 00:11:59]} {[%emt 00:01:03]} b4 {[%clk 00:12:03]} {[%emt 00:01:26]} 10.
Bxf6 {[%clk 00:11:59]} {[%emt 00:00:02]} gxf6 {[%clk 00:10:41]} {[%emt
00:01:26]} 11. Ne4 {[%clk 00:11:59]} Bxd5 {[%clk 00:10:23]} {[%emt 00:00:24]}
12. Nf4 {[%clk 00:11:59]} {[%emt 00:00:03]} Bc6 {[%clk 00:07:05]} {[%emt
00:03:23]} 13. Qh5 {[%clk 00:11:59]} {[%emt 00:00:02]} Qc8 {[%clk 00:07:05]}
{[%emt 00:00:02]} 14. Rfe1 {[%clk 00:11:26]} {[%emt 00:00:37]} e5 {[%clk
00:06:14]} {[%emt 00:00:57]} 15. Bh3 {[%clk 00:08:27]} {[%emt 00:03:04]} Nd7
{[%clk 00:04:43]} {[%emt 00:01:36]} 16. Ne6 {[%clk 00:08:18]} {[%emt 00:00:13]}
Qb7 {[%clk 00:03:46]} {[%emt 00:01:03]} 17. Ng7+ {[%clk 00:08:16]} {[%emt
00:00:06]} Kd8 {[%clk 00:03:41]} {[%emt 00:00:10]} 18. Qxf7 {[%clk 00:07:57]}
{[%emt 00:00:24]} Bd5 {[%clk 00:02:37]} {[%emt 00:01:09]} 19. Ne6+ {[%clk
00:06:44]} {[%emt 00:01:18]} Bxe6 {[%clk 00:02:37]} {[%emt 00:00:06]} 20. Qxe6
{[%clk 00:06:44]} {[%emt 00:00:04]} a5 {[%clk 00:02:00]} {[%emt 00:00:41]} 21.
c3 {[%clk 00:06:30]} {[%emt 00:00:18]} Ra6 {[%clk 00:02:00]} {[%emt 00:00:05]}
22. Qf5 {[%clk 00:06:30]} h5 {[%clk 00:01:39]} {[%emt 00:00:26]} 23. d4 {[%clk
00:05:59]} {[%emt 00:00:37]} cxd4 {[%clk 00:01:03]} {[%emt 00:00:41]} 24. cxd4
{[%clk 00:05:59]} {[%emt 00:00:01]} h4 {[%clk 00:00:17]} {[%emt 00:00:51]} 25.
dxe5 {[%clk 00:05:40]} {[%emt 00:00:24]} Nxe5 {[%clk 00:00:17]} {[%emt
00:00:02]} 26. Rad1+ {[%clk 00:05:37]} {[%emt 00:00:07]} Kc7 {[%clk 00:00:07]}
{[%emt 00:00:16]} 27. Bg2 {[%clk 00:05:16]} {[%emt 00:00:25]} hxg3 {[%clk
00:00:07]} 28. hxg3 {[%clk 00:05:16]} Qc8 {[%clk 04:04:05]} {[%emt 00:00:05]}
29. Rc1+ {[%clk 00:05:16]} {[%emt 00:00:02]} Rc6 {[%clk 00:00:07]} {[%emt
00:00:02]} 30. Qf4 {[%clk 00:04:45]} {[%emt 00:00:35]} Kb6 {[%emt 00:00:01]} 31.
Qe3+ {[%clk 00:04:41]} {[%emt 00:00:08]} Kc7 {[%clk 00:00:07]} {[%emt
00:00:06]} 32. Qa7+ {[%clk 00:04:19]} {[%emt 00:00:27]} Kd8 {[%clk 00:00:07]}
{[%emt 00:00:05]} 33. Qxa5+ {[%clk 00:03:53]} {[%emt 00:00:31]} Qc7 {[%clk
00:00:07]} {[%emt 00:00:05]} 34. Red1+ {[%clk 00:02:51]} {[%emt 00:01:07]} Ke8
{[%clk 00:00:06]} {[%emt 00:00:05]} 35. Qxc7 {[%clk 00:02:51]} {[%emt
00:00:02]} 1-0

[Event "Chpt France Universitaire 2024"]
[Site "Bastia, France"]
[Date "2024.04.07"]
[Round "9.7"]
[White "Paris, Romain"]
[Black "Baroyan, Davit"]
[Result "0-1"]
[TimeControl "15min+5s"]
[WhiteElo "1898"]
[BlackElo "2118"]

1. d4 {[%clk 00:15:05]} d5 {[%clk 00:15:05]} {[%emt 00:00:02]} 2. Nf3 {[%clk
00:15:05]} {[%emt 00:00:01]} e6 {[%clk 00:15:05]} {[%emt 00:00:02]} 3. c4
{[%clk 00:15:05]} {[%emt 00:00:02]} c6 {[%clk 00:15:05]} 4. Nc3 {[%clk
00:15:05]} {[%emt 00:00:02]} dxc4 {[%clk 00:15:05]} {[%emt 00:00:01]} 5. a4
{[%clk 00:15:05]} {[%emt 00:00:04]} Bb4 {[%clk 00:15:05]} {[%emt 00:00:02]} 6.
e3 {[%clk 00:15:00]} {[%emt 00:00:10]} b5 {[%clk 00:15:05]} {[%emt 00:00:01]} 7.
Be2 {[%clk 00:15:00]} {[%emt 00:00:04]} Bb7 {[%clk 00:15:02]} {[%emt 00:00:09]}
8. O-O {[%clk 00:15:00]} {[%emt 00:00:02]} a6 {[%clk 00:15:02]} {[%emt
00:00:01]} 9. e4 {[%clk 00:14:14]} {[%emt 00:00:51]} Nf6 {[%clk 00:14:20]}
{[%emt 00:00:47]} 10. Qc2 {[%clk 00:14:14]} {[%emt 00:00:04]} Qb6 {[%clk
00:12:53]} {[%emt 00:01:33]} 11. Bg5 {[%clk 00:13:02]} {[%emt 00:01:15]} Nbd7
{[%clk 00:12:22]} {[%emt 00:00:38]} 12. Rfd1 {[%clk 00:13:02]} {[%emt
00:00:02]} c5 {[%clk 00:11:32]} {[%emt 00:00:55]} 13. d5 {[%clk 00:11:20]}
{[%emt 00:01:47]} O-O {[%clk 00:11:29]} {[%emt 00:00:09]} 14. dxe6 {[%clk
00:10:54]} {[%emt 00:00:31]} Qxe6 {[%clk 00:11:04]} {[%emt 00:00:29]} 15. Nd2
{[%clk 00:06:18]} {[%emt 00:04:41]} Bxc3 {[%clk 00:10:11]} {[%emt 00:00:58]} 16.
Qxc3 {[%clk 00:06:02]} {[%emt 00:00:20]} Nxe4 {[%clk 00:09:39]} {[%emt
00:00:37]} 17. Nxe4 {[%clk 00:05:49]} {[%emt 00:00:18]} Bxe4 {[%clk 00:09:39]}
{[%emt 00:00:05]} 18. Bf4 {[%clk 00:05:28]} {[%emt 00:00:26]} Nf6 {[%clk
00:09:07]} {[%emt 00:00:38]} 19. Rd6 {[%clk 00:03:40]} {[%emt 00:01:52]} Nd5
{[%clk 00:08:21]} {[%emt 00:00:51]} 20. Qd2 {[%clk 00:03:40]} {[%emt 00:00:04]}
Qf5 {[%clk 00:08:08]} {[%emt 00:00:19]} 21. Bg3 {[%clk 00:03:28]} {[%emt
00:00:16]} Rad8 {[%clk 00:07:29]} {[%emt 00:00:45]} 22. Rxd8 {[%clk 00:03:22]}
{[%emt 00:00:11]} Rxd8 {[%clk 00:07:29]} {[%emt 00:00:01]} 23. axb5 {[%clk
00:03:14]} {[%emt 00:00:12]} axb5 {[%clk 00:07:27]} {[%emt 00:00:07]} 24. Qa5
{[%clk 00:03:07]} {[%emt 00:00:12]} Qd7 {[%clk 00:06:43]} {[%emt 00:00:49]} 25.
Rd1 {[%clk 00:02:48]} {[%emt 00:00:24]} Re8 {[%clk 00:06:36]} {[%emt 00:00:13]}
26. Bf1 {[%clk 00:02:34]} {[%emt 00:00:18]} Bd3 {[%emt 00:00:31]} 27. Bxd3
{[%clk 00:02:24]} {[%emt 00:00:15]} cxd3 {[%clk 00:06:11]} 28. Rxd3 {[%clk
00:02:24]} {[%emt 00:00:02]} Nb4 {[%clk 00:05:58]} {[%emt 00:00:18]} 29. h3
{[%clk 00:01:12]} {[%emt 00:01:17]} Nxd3 {[%clk 00:05:52]} {[%emt 00:00:11]} 30.
b3 {[%clk 00:01:11]} {[%emt 00:00:05]} c4 {[%clk 00:05:49]} {[%emt 00:00:08]}
31. bxc4 {[%clk 00:01:11]} {[%emt 00:00:02]} bxc4 {[%clk 00:05:49]} 32. Qc3
{[%clk 00:01:11]} Qe6 {[%clk 00:05:41]} {[%emt 00:00:13]} 33. Kh2 {[%clk
00:01:11]} {[%emt 00:00:04]} h5 {[%clk 00:05:41]} {[%emt 00:00:05]} 34. Qd4
{[%clk 00:01:11]} {[%emt 00:00:05]} h4 {[%clk 00:05:33]} {[%emt 00:00:14]} 35.
Bc7 {[%clk 00:01:09]} {[%emt 00:00:08]} Qe4 {[%clk 00:05:20]} {[%emt 00:00:17]}
36. Qd7 {[%clk 00:01:09]} {[%emt 00:00:05]} Ne1 {[%clk 00:05:09]} {[%emt
00:00:16]} 37. f3 {[%clk 00:01:03]} {[%emt 00:00:11]} Nxf3+ {[%clk 00:05:09]}
{[%emt 00:00:02]} 38. gxf3 {[%clk 00:00:58]} {[%emt 00:00:10]} Qc2+ {[%clk
00:05:09]} {[%emt 00:00:01]} 39. Kg1 {[%clk 00:00:58]} Re1# {[%clk 00:05:09]}
{[%emt 00:00:01]} 0-1

[Event "Chpt France Universitaire 2024"]
[Site "Bastia, France"]
[Date "2024.04.07"]
[Round "9.8"]
[White "Mathieu, Phileas"]
[Black "Dubuisson, Samuel"]
[Result "1-0"]
[TimeControl "15min+5s"]
[WhiteElo "2325"]
[BlackElo "2129"]

1. e4 {[%clk 00:15:05]} c5 {[%clk 00:15:01]} {[%emt 00:00:09]} 2. Nf3 {[%clk
00:15:05]} {[%emt 00:00:02]} d6 {[%clk 00:15:01]} {[%emt 00:00:04]} 3. d4
{[%clk 00:15:05]} {[%emt 00:00:01]} cxd4 {[%clk 00:15:01]} {[%emt 00:00:04]} 4.
Nxd4 {[%clk 00:15:05]} Nf6 {[%clk 00:15:01]} {[%emt 00:00:05]} 5. Nc3 {[%clk
00:15:05]} {[%emt 00:00:02]} a6 {[%clk 00:15:01]} {[%emt 00:00:05]} 6. a3
{[%clk 00:14:53]} {[%emt 00:00:17]} Nc6 {[%clk 00:14:28]} {[%emt 00:00:38]} 7.
Bg5 {[%clk 00:14:13]} {[%emt 00:00:44]} e6 {[%clk 00:14:20]} {[%emt 00:00:13]}
8. Bc4 {[%clk 00:13:31]} {[%emt 00:00:48]} Be7 {[%clk 00:14:02]} {[%emt
00:00:22]} 9. h4 {[%clk 00:13:16]} {[%emt 00:00:20]} Bd7 {[%clk 00:14:00]}
{[%emt 00:00:08]} 10. Qd2 {[%clk 00:12:58]} {[%emt 00:00:23]} Nxd4 {[%clk
00:13:29]} {[%emt 00:00:36]} 11. Qxd4 {[%clk 00:12:58]} {[%emt 00:00:02]} Bc6
{[%clk 00:13:23]} {[%emt 00:00:11]} 12. O-O-O {[%clk 00:12:55]} {[%emt
00:00:07]} h6 {[%clk 00:13:14]} {[%emt 00:00:15]} 13. Be3 {[%clk 00:12:47]}
{[%emt 00:00:13]} Qc7 {[%clk 00:12:55]} {[%emt 00:00:23]} 14. f3 {[%clk
00:11:58]} {[%emt 00:00:54]} Rc8 {[%clk 00:12:55]} {[%emt 00:00:05]} 15. Bb3
{[%clk 00:11:13]} {[%emt 00:00:50]} Rg8 {[%clk 00:08:10]} {[%emt 00:04:50]} 16.
Kb1 {[%clk 00:10:24]} {[%emt 00:00:54]} Nd7 {[%clk 00:08:09]} {[%emt 00:00:06]}
17. Bf4 {[%clk 00:06:37]} {[%emt 00:03:52]} e5 {[%clk 00:06:24]} {[%emt
00:01:50]} 18. Qc4 {[%clk 00:06:37]} {[%emt 00:00:01]} Rf8 {[%clk 00:05:57]}
{[%emt 00:00:33]} 19. Be3 {[%clk 00:06:37]} b5 {[%clk 00:04:47]} {[%emt
00:01:15]} 20. Qe2 {[%clk 00:06:04]} {[%emt 00:00:37]} Nc5 {[%clk 00:03:08]}
{[%emt 00:01:44]} 21. Bd5 {[%clk 00:06:04]} {[%emt 00:00:02]} Bd7 {[%clk
00:02:55]} {[%emt 00:00:19]} 22. Ba2 {[%clk 00:06:04]} {[%emt 00:00:01]} Be6
{[%clk 00:02:38]} {[%emt 00:00:22]} 23. Nd5 {[%clk 00:05:56]} {[%emt 00:00:12]}
Bxd5 {[%clk 00:02:02]} {[%emt 00:00:42]} 24. Rxd5 {[%clk 00:05:56]} {[%emt
00:00:01]} Na4 {[%clk 00:02:02]} {[%emt 00:00:05]} 25. Rhd1 {[%clk 00:05:39]}
{[%emt 00:00:22]} Bxh4 {[%clk 00:01:55]} {[%emt 00:00:13]} 26. Rxd6 {[%clk
00:05:28]} {[%emt 00:00:15]} Be7 {[%clk 00:01:55]} {[%emt 00:00:04]} 27. Rxa6
{[%clk 00:05:15]} {[%emt 00:00:18]} Qb7 {[%clk 00:01:35]} {[%emt 00:00:25]} 28.
Ra7 {[%clk 00:05:11]} {[%emt 00:00:09]} Qc6 {[%clk 00:01:32]} {[%emt 00:00:08]}
29. Bd5 {[%clk 00:05:00]} {[%emt 00:00:15]} Nc3+ {[%clk 00:00:11]} {[%emt
00:01:26]} 30. bxc3 {[%clk 00:05:00]} {[%emt 00:00:05]} Qxc3 {[%clk 00:00:11]}
{[%emt 00:00:02]} 31. Qxb5+ {[%clk 00:05:00]} {[%emt 00:00:03]} 1-0

[Event "Chpt France Universitaire 2024"]
[Site "Bastia, France"]
[Date "2024.04.07"]
[Round "9.9"]
[White "Soreda, Matteo"]
[Black "Defromont, Benjamin"]
[Result "0-1"]
[TimeControl "15min+5s"]
[WhiteElo "1954"]
[BlackElo "2393"]

1. e4 {[%clk 00:15:05]} c5 {[%clk 00:15:05]} {[%emt 00:00:04]} 2. Nf3 {[%clk
00:15:05]} {[%emt 00:00:01]} Nc6 {[%clk 00:15:05]} {[%emt 00:00:01]} 3. Bb5
{[%clk 00:15:05]} Nf6 {[%clk 00:15:05]} {[%emt 00:00:01]} 4. Bxc6 {[%clk
00:14:52]} {[%emt 00:00:19]} dxc6 {[%clk 00:15:05]} {[%emt 00:00:01]} 5. d3
{[%clk 00:14:42]} {[%emt 00:00:16]} Bg4 {[%clk 00:15:05]} {[%emt 00:00:01]} 6.
h3 {[%clk 00:14:29]} {[%emt 00:00:17]} Bh5 {[%clk 00:15:05]} {[%emt 00:00:03]}
7. Be3 {[%clk 00:14:21]} {[%emt 00:00:13]} e6 {[%clk 00:14:54]} {[%emt
00:00:16]} 8. Nbd2 {[%clk 00:14:08]} {[%emt 00:00:18]} Be7 {[%clk 00:14:40]}
{[%emt 00:00:19]} 9. a4 {[%clk 00:12:54]} {[%emt 00:01:20]} Qc7 {[%clk
00:14:25]} {[%emt 00:00:20]} 10. a5 {[%clk 00:12:02]} {[%emt 00:00:57]} h6
{[%clk 00:13:27]} {[%emt 00:01:03]} 11. Nc4 {[%clk 00:11:52]} {[%emt 00:00:14]}
g5 {[%clk 00:13:14]} {[%emt 00:00:18]} 12. Qd2 {[%clk 00:10:34]} {[%emt
00:01:23]} Nd7 {[%clk 00:13:14]} {[%emt 00:00:05]} 13. Qc3 {[%clk 00:09:15]}
{[%emt 00:01:25]} O-O-O {[%clk 00:12:31]} {[%emt 00:00:48]} 14. Nfd2 {[%clk
00:07:54]} {[%emt 00:01:26]} f5 {[%clk 00:12:16]} {[%emt 00:00:20]} 15. f3
{[%clk 00:07:28]} {[%emt 00:00:30]} Bf6 {[%clk 00:11:31]} {[%emt 00:00:50]} 16.
Qa3 {[%clk 00:07:23]} {[%emt 00:00:11]} Bd4 {[%clk 00:11:31]} {[%emt 00:00:03]}
17. Bxd4 {[%clk 00:06:49]} {[%emt 00:00:39]} cxd4 {[%clk 00:11:31]} {[%emt
00:00:01]} 18. Nd6+ {[%clk 00:06:49]} {[%emt 00:00:01]} Kb8 {[%clk 00:11:31]}
{[%emt 00:00:01]} 19. N2c4 {[%clk 00:06:43]} {[%emt 00:00:10]} fxe4 {[%clk
00:10:52]} {[%emt 00:00:45]} 20. dxe4 {[%clk 00:06:34]} {[%emt 00:00:13]} Ne5
{[%clk 00:10:09]} {[%emt 00:00:48]} 21. Qc5 {[%clk 00:05:05]} {[%emt 00:01:35]}
Nxc4 {[%clk 00:10:01]} {[%emt 00:00:13]} 22. Nxc4 {[%clk 00:05:05]} {[%emt
00:00:02]} d3 {[%clk 00:09:01]} {[%emt 00:01:06]} 23. O-O-O {[%emt 00:01:00]}
Qf4+ {[%emt 00:00:22]} 24. Kb1 {[%clk 00:03:47]} d2 {[%clk 00:07:44]} {[%emt
00:01:22]} 25. a6 {[%clk 00:03:24]} {[%emt 00:00:27]} Rh7 {[%clk 00:06:19]}
{[%emt 00:01:30]} 26. axb7 {[%clk 00:03:10]} {[%emt 00:00:19]} Be8 {[%clk
00:06:19]} {[%emt 00:00:04]} 27. Ne5 {[%clk 00:02:58]} {[%emt 00:00:16]} Rxb7
{[%clk 00:06:07]} {[%emt 00:00:16]} 28. Nd3 {[%clk 00:02:33]} {[%emt 00:00:31]}
Qc7 {[%clk 00:05:35]} {[%emt 00:00:38]} 29. Rxd2 {[%clk 00:02:29]} {[%emt
00:00:09]} Rb5 {[%clk 00:05:35]} {[%emt 00:00:01]} 30. Qc3 {[%clk 00:02:25]}
{[%emt 00:00:09]} Ka8 {[%clk 00:05:24]} {[%emt 00:00:16]} 31. b3 {[%clk
00:01:53]} {[%emt 00:00:37]} Rdb8 {[%clk 00:05:24]} 32. Nb2 {[%clk 00:01:41]}
{[%emt 00:00:17]} e5 {[%clk 00:04:33]} {[%emt 00:00:56]} 33. Rhd1 {[%clk
00:01:41]} {[%emt 00:00:04]} Qb6 {[%clk 00:04:01]} {[%emt 00:00:37]} 34. Rd6
{[%clk 00:01:34]} {[%emt 00:00:10]} Rc5 {[%clk 00:03:45]} {[%emt 00:00:22]} 35.
Qd2 {[%clk 00:01:29]} {[%emt 00:00:10]} Rb5 {[%clk 00:03:15]} {[%emt 00:00:36]}
36. Rxh6 {[%clk 00:01:25]} {[%emt 00:00:08]} Qa6 {[%clk 00:03:05]} {[%emt
00:00:16]} 37. Nc4 {[%clk 00:00:50]} {[%emt 00:00:40]} Rxb3+ {[%clk 00:02:53]}
{[%emt 00:00:17]} 38. cxb3 {[%clk 00:00:47]} {[%emt 00:00:08]} Qxc4 {[%clk
00:02:53]} {[%emt 00:00:03]} 39. Qd8 {[%clk 00:00:07]} {[%emt 00:00:46]} Qxb3+
{[%clk 00:02:53]} {[%emt 00:00:03]} 40. Kc1 {[%clk 00:00:07]} {[%emt 00:00:02]}
Qb2# {[%clk 00:02:53]} {[%emt 00:00:01]} 0-1

[Event "Chpt France Universitaire 2024"]
[Site "Bastia, France"]
[Date "2024.04.07"]
[Round "9.10"]
[White "Lordier, Sophia"]
[Black "Cahen, Alexis"]
[Result "0-1"]
[TimeControl "15min+5s"]
[WhiteElo "1934"]
[BlackElo "2060"]

1. d4 {[%clk 00:15:05]} Nf6 {[%clk 00:15:05]} {[%emt 00:00:03]} 2. c4 {[%clk
00:15:05]} {[%emt 00:00:01]} c5 {[%clk 00:15:05]} {[%emt 00:00:02]} 3. d5
{[%clk 00:15:05]} {[%emt 00:00:01]} b5 {[%clk 00:15:05]} 4. cxb5 {[%clk
00:15:05]} a6 {[%clk 00:15:05]} 5. bxa6 {[%clk 00:15:05]} {[%emt 00:00:01]}
Bxa6 {[%clk 00:15:05]} {[%emt 00:00:02]} 6. Nc3 {[%clk 00:15:05]} d6 {[%clk
00:15:02]} {[%emt 00:00:08]} 7. e4 {[%clk 00:15:05]} {[%emt 00:00:01]} Bxf1
{[%clk 00:15:02]} {[%emt 00:00:03]} 8. Kxf1 {[%clk 00:15:05]} {[%emt 00:00:01]}
g6 {[%clk 00:15:02]} {[%emt 00:00:04]} 9. g3 {[%clk 00:15:05]} {[%emt
00:00:01]} Bg7 {[%clk 00:15:02]} {[%emt 00:00:01]} 10. Kg2 {[%clk 00:15:05]}
{[%emt 00:00:02]} Nbd7 {[%clk 00:14:59]} {[%emt 00:00:08]} 11. Nf3 {[%clk
00:15:05]} {[%emt 00:00:02]} O-O {[%clk 00:14:59]} {[%emt 00:00:03]} 12. a4
{[%clk 00:15:05]} {[%emt 00:00:03]} Qb6 {[%clk 00:14:36]} {[%emt 00:00:27]} 13.
Qe2 {[%clk 00:14:48]} {[%emt 00:00:23]} Rfb8 {[%clk 00:14:32]} {[%emt
00:00:09]} 14. Nb5 {[%clk 00:14:39]} {[%emt 00:00:14]} Ne8 {[%clk 00:14:04]}
{[%emt 00:00:32]} 15. Ra3 {[%clk 00:13:23]} {[%emt 00:01:22]} Nc7 {[%clk
00:14:00]} {[%emt 00:00:09]} 16. Nxc7 {[%clk 00:13:14]} {[%emt 00:00:14]} Qxc7
{[%clk 00:14:00]} {[%emt 00:00:01]} 17. b3 {[%clk 00:13:09]} {[%emt 00:00:10]}
Rb7 {[%clk 00:11:41]} {[%emt 00:02:24]} 18. Be3 {[%clk 00:12:05]} {[%emt
00:01:09]} Rab8 {[%clk 00:11:09]} {[%emt 00:00:37]} 19. Qc2 {[%clk 00:11:56]}
{[%emt 00:00:14]} Qa5 {[%clk 00:09:57]} {[%emt 00:01:17]} 20. Bd2 {[%clk
00:11:49]} {[%emt 00:00:12]} Qa6 {[%clk 00:09:52]} {[%emt 00:00:10]} 21. Rc1
{[%clk 00:10:08]} {[%emt 00:01:46]} Nf6 {[%clk 00:08:26]} {[%emt 00:01:30]} 22.
Bc3 {[%clk 00:09:31]} {[%emt 00:00:43]} Rb6 {[%clk 00:07:29]} {[%emt 00:01:02]}
23. h4 {[%clk 00:08:50]} {[%emt 00:00:45]} h6 {[%clk 00:06:26]} {[%emt
00:01:09]} 24. Rd1 {[%clk 00:07:50]} {[%emt 00:01:05]} Qb7 {[%clk 00:04:31]}
{[%emt 00:02:00]} 25. Nd2 {[%clk 00:07:49]} {[%emt 00:00:06]} Ng4 {[%clk
00:02:36]} {[%emt 00:02:00]} 26. Bxg7 {[%clk 00:07:27]} {[%emt 00:00:27]} Kxg7
{[%clk 00:02:36]} {[%emt 00:00:02]} 27. Qc3+ {[%clk 00:07:27]} {[%emt
00:00:02]} Kg8 {[%clk 00:02:28]} {[%emt 00:00:14]} 28. f3 {[%clk 00:07:27]}
{[%emt 00:00:05]} Ne5 {[%clk 00:02:18]} {[%emt 00:00:14]} 29. f4 {[%clk
00:07:17]} {[%emt 00:00:15]} Ng4 {[%clk 00:02:12]} {[%emt 00:00:10]} 30. Qf3
{[%clk 00:06:48]} {[%emt 00:00:34]} h5 {[%clk 00:02:10]} {[%emt 00:00:08]} 31.
a5 {[%clk 00:05:46]} {[%emt 00:01:08]} Ra6 {[%clk 00:01:47]} {[%emt 00:00:28]}
32. Nc4 {[%clk 00:05:38]} {[%emt 00:00:13]} Qb4 {[%clk 00:01:31]} {[%emt
00:00:21]} 33. Rb1 {[%clk 00:04:08]} {[%emt 00:01:32]} Rb5 {[%clk 00:01:17]}
{[%emt 00:00:21]} 34. Qd3 {[%clk 00:03:37]} {[%emt 00:00:35]} Rb8 {[%clk
00:00:54]} {[%emt 00:00:28]} 35. Rba1 {[%clk 00:02:04]} {[%emt 00:01:38]} Qb5
{[%clk 00:00:54]} {[%emt 00:00:02]} 36. Qf3 {[%clk 00:01:54]} {[%emt 00:00:15]}
Qb4 {[%clk 00:00:51]} {[%emt 00:00:09]} 37. Qd3 {[%clk 00:00:48]} {[%emt
00:01:10]} Qb5 {[%clk 00:00:51]} {[%emt 00:00:02]} 38. e5 {[%clk 00:00:22]}
{[%emt 00:00:31]} Qb7 {[%clk 00:00:45]} {[%emt 00:00:11]} 39. f5 {[%clk
00:00:13]} {[%emt 00:00:14]} Nxe5 {[%clk 00:00:38]} {[%emt 00:00:12]} 40. Nxe5
dxe5 41. fxg6 {[%clk 00:00:13]} {[%emt 00:00:02]} Rxg6 {[%clk 00:00:28]} {[%emt
00:00:15]} 42. a6 {[%clk 00:00:10]} {[%emt 00:00:08]} Qa7 {[%clk 00:00:28]}
{[%emt 00:00:05]} 43. Rf1 {[%clk 00:00:10]} {[%emt 00:00:02]} Rbb6 {[%clk
00:00:28]} {[%emt 00:00:02]} 44. Qf5 {[%clk 00:00:10]} {[%emt 00:00:04]} Rbf6
{[%clk 00:00:10]} {[%emt 00:00:23]} 45. Qc8+ {[%clk 00:00:10]} {[%emt
00:00:05]} Kg7 {[%clk 00:00:10]} 46. Rxf6 {[%clk 00:00:06]} {[%emt 00:00:08]}
Rxf6 {[%clk 00:00:10]} 47. Qb7 {[%clk 00:00:06]} {[%emt 00:00:02]} Qxb7 {[%clk
00:00:10]} {[%emt 00:00:02]} 48. axb7 {[%emt 00:00:01]} Rb6 49. Ra5 {[%clk
00:00:00]} {[%emt 00:00:06]} 0-1